bitfinex/quotes_ETHUSD_20250801
["timestamp","ask_amount","ask_price","bid_price","bid_amount"]
[1754045509891,8.524,3617.8,3617.4,0.1384]
[1754045510174,8.524,3617.8,3617.6,3.0]
[1754045510373,8.524,3617.8,3617.7,5.76418719]
[1754045510683,8.524,3617.8,3617.7,3.0]
[1754045511686,4.2,3617.8,3617.7,3.0]
[1754045511854,8.52,3617.8,3617.7,3.7651]
[1754045512351,4.2,3617.8,3617.7,3.7651]
[1754045512562,8.52,3617.8,3617.7,3.7651]
[1754045512741,8.52,3617.8,3617.7,6.52928719]
[1754045512943,8.52,3617.8,3617.7,3.7651]
[1754045514347,8.52,3617.8,3617.7,6.52928719]
[1754045514770,8.52,3617.8,3617.7,3.7651]
[1754045514957,8.52,3617.8,3617.7,3.0]
[1754045515276,8.516,3617.8,3617.7,3.0]
[1754045515780,8.514,3617.8,3617.7,6.96418719]
[1754045516190,4.2,3617.8,3617.7,3.7651]
[1754045516393,8.514,3617.8,3617.7,6.96418719]
[1754045516764,4.2,3617.8,3617.7,6.96418719]
[1754045516968,8.513,3617.8,3617.7,6.96418719]
[1754045519192,8.513,3617.8,3617.7,3.0]
[1754045519506,9.3643,3617.8,3617.7,3.0]
[1754045520197,8.513,3617.8,3617.7,3.0]
[1754045520394,8.513,3617.8,3617.7,5.76418719]
[1754045520784,8.513,3617.8,3617.7,3.0]
[1754045520990,4.2,3617.8,3617.7,3.0]
[1754045521485,8.51,3617.8,3617.7,5.76418719]
[1754045521686,4.2,3617.8,3617.7,5.76418719]
[1754045521875,4.2,3618.4,3618.3,2.76372882]
[1754045522079,4.31,3618.4,3618.3,6.96372882]
[1754045522304,4.2,3618.7,3618.6,2.76349969]
[1754045522512,8.51,3618.7,3617.9,3.0]
[1754045522717,8.51,3618.7,3618.4,3.0]
[1754045522893,8.51,3618.7,3618.5,3.0]
[1754045523214,4.2,3618.7,3618.5,3.1384]
[1754045523442,4.312,3618.6,3618.5,6.33687606]
[1754045523622,4.312,3618.6,3618.5,3.5733]
[1754045523820,4.312,3618.6,3618.5,3.1384]
[1754045524233,5.26194096,3618.6,3618.5,3.1384]
[1754045524432,24.37599863,3618.6,3618.0,0.1384]
[1754045524804,4.2,3618.5,3618.0,2.76390887]
[1754045525047,4.4504,3618.4,3618.0,3.52900887]
[1754045525221,4.4504,3618.4,3618.0,0.7651]
[1754045525549,4.4504,3618.4,3618.0,2.76395798]
[1754045525711,0.1384,3618.4,3618.0,2.76395798]
[1754045525906,0.1384,3618.4,3618.0,3.52905798]
[1754045526157,4.31,3618.3,3618.0,3.52905496]
[1754045526509,4.31,3618.3,3617.9,0.1384]
[1754045526510,4.2,3618.2,3617.9,0.1384]
[1754045526721,4.2,3618.2,3617.6,0.4349]
[1754045526722,4.31,3618.1,3617.6,1.2]
[1754045526937,17.80925767,3618.0,3617.2,0.1384]
[1754045527248,0.1384,3617.7,3617.4,3.0]
[1754045527444,4.311,3617.6,3617.0,3.0]
[1754045527611,4.311,3617.6,3617.1,0.1384]
[1754045527814,4.311,3617.6,3617.2,3.0]
[1754045528012,4.311,3617.6,3617.1,2.9030295]
[1754045528013,4.311,3617.6,3617.1,0.1384]
[1754045528246,5.0469,3617.6,3617.0,2.76471815]
[1754045528448,4.311,3617.6,3617.1,5.76463108]
[1754045528746,4.311,3617.6,3617.1,3.0]
[1754045528946,0.1384,3617.5,3617.0,0.1384]
[1754045529106,4.31,3617.4,3617.1,3.0]
[1754045529452,4.31,3617.4,3617.0,0.1384]
[1754045530007,4.2,3617.3,3617.0,0.1384]
[1754045530206,4.4484,3617.2,3616.7,0.1384]
[1754045530449,4.2,3617.1,3616.7,0.1384]
[1754045530644,4.31,3617.0,3616.7,0.1384]
[1754045530850,4.31,3617.0,3616.8,0.7651]
[1754045531053,4.31,3617.0,3616.9,3.0]
[1754045531420,4.31,3617.0,3616.9,4.2]
[1754045531617,4.31,3617.0,3616.9,1.2]
[1754045531818,4.311,3617.0,3616.9,3.96479858]
[1754045532023,4.311,3617.0,3616.9,7.10319858]
[1754045532625,4.311,3617.0,3616.9,3.1384]
[1754045533422,4.311,3617.0,3616.9,3.0]
[1754045533620,4.311,3617.0,3616.5,0.1384]
[1754045533621,6.0364,3617.0,3616.5,0.1384]
[1754045533821,0.7359,3616.9,3616.4,0.1384]
[1754045534024,4.311,3616.8,3616.5,0.7651]
[1754045534229,4.2,3616.7,3616.6,3.96501632]
[1754045534437,8.511,3616.7,3616.6,4.10341632]
[1754045534859,8.511,3616.7,3616.6,5.09026933]
[1754045535358,4.2,3616.7,3616.6,5.09026933]
[1754045535670,8.511,3616.7,3616.6,3.1384]
[1754045535823,8.511,3616.7,3616.6,0.1384]
[1754045536360,8.511,3616.7,3616.0,2.76546301]
[1754045536661,9.2469,3616.7,3616.3,0.1384]
[1754045537466,9.2469,3616.7,3616.4,2.76517614]
[1754045537635,8.511,3616.7,3616.4,2.76517614]
[1754045537845,8.511,3616.7,3616.3,3.1384]
[1754045538055,8.511,3616.7,3616.5,2.76510274]
[1754045538244,8.511,3616.7,3616.3,5.90363232]
[1754045538446,4.311,3616.6,3616.5,2.76506096]
[1754045538766,4.2,3616.7,3616.6,6.89832792]
[1754045538926,8.511,3616.7,3616.6,6.89832792]
[1754045539333,8.511,3616.7,3616.6,3.0]
[1754045539652,8.511,3616.7,3616.6,5.76502792]
[1754045539853,8.511,3616.7,3616.6,7.03672792]
[1754045540364,8.511,3616.7,3616.6,5.90342792]
[1754045540566,8.511,3616.7,3616.6,7.03672792]
[1754045540754,4.2,3616.7,3616.6,8.01691786]
[1754045541155,8.511,3616.7,3616.6,8.01691786]
[1754045541546,4.2,3616.7,3616.6,8.01691786]
[1754045541753,8.511,3616.7,3616.6,8.01691786]
[1754045541961,2.76403604,3617.9,3617.4,2.76441643]
[1754045541962,4.311,3617.5,3617.4,2.76441643]
[1754045542132,4.311,3617.5,3617.4,3.89771643]
[1754045542133,4.322,3617.5,3617.4,3.89771643]
[1754045542469,4.322,3617.5,3617.4,4.03611643]
[1754045542636,4.222,3617.5,3617.4,4.03611643]
[1754045542830,4.222,3617.5,3617.4,7.03611643]
[1754045543044,4.2,3618.0,3617.5,3.0]
[1754045543249,4.321,3617.9,3617.7,3.1384]
[1754045543450,4.321,3617.9,3617.8,2.76411078]
[1754045543740,4.321,3617.9,3617.8,3.89741078]
[1754045544249,4.321,3617.9,3617.7,0.1384]
[1754045544557,4.321,3617.9,3617.6,2.90265529]
[1754045544558,5.0503,3617.9,3617.6,2.90265529]
[1754045544733,0.7293,3617.8,3617.6,0.1384]
[1754045544936,4.319,3617.7,3617.3,0.1384]
[1754045545167,4.319,3617.7,3617.4,2.76434955]
[1754045545371,4.319,3617.7,3617.3,2.90288652]
[1754045545897,5.0483,3617.7,3617.4,2.76439478]
[1754045546103,4.319,3617.7,3617.5,2.76429035]
[1754045547676,4.319,3617.7,3617.3,0.1384]
[1754045547866,4.2,3618.1,3617.6,0.1384]
[1754045548184,4.317,3618.0,3617.7,3.89747299]
[1754045548383,4.2,3618.1,3618.0,2.76395798]
[1754045548590,8.517,3618.1,3618.0,3.46715798]
[1754045548974,4.2,3618.1,3618.0,3.46715798]
[1754045549166,8.516,3618.1,3618.0,3.89725798]
[1754045549362,4.316,3618.1,3618.0,3.89725798]
[1754045549579,4.316,3618.1,3618.0,0.1384]
[1754045549822,1.1952,3618.1,3617.3,3.0]
[1754045549974,1.1952,3618.1,3617.9,2.76402664]
[1754045549975,4.315,3618.1,3617.9,2.76402664]
[1754045550325,4.315,3618.1,3617.8,2.90249161]
[1754045550480,4.315,3618.1,3617.8,0.1384]
[1754045550679,5.0443,3618.1,3617.6,3.0]
[1754045550871,0.7293,3618.0,3617.6,3.1384]
[1754045551073,4.314,3617.9,3617.6,3.1384]
[1754045551273,5.0433,3617.9,3617.1,3.7032]
[1754045551504,0.1384,3617.8,3617.5,2.76433633]
[1754045551806,0.1384,3617.8,3617.4,3.0]
[1754045551977,0.1384,3617.8,3617.5,2.76428818]
[1754045552182,0.1384,3617.8,3617.5,2.7643374]
[1754045552791,0.1384,3617.8,3617.5,2.76429175]
[1754045553813,4.314,3617.9,3617.3,0.1384]
[1754045554000,4.311,3617.8,3617.6,3.89754529]
[1754045554171,4.311,3617.7,3617.6,2.90264529]
[1754045554603,4.311,3617.7,3617.6,4.03594529]
[1754045555406,4.311,3617.7,3617.6,0.1384]
[1754045555595,4.311,3617.7,3617.6,2.9026636]
[1754045556001,4.311,3617.7,3617.6,3.6058636]
[1754045556573,4.311,3617.7,3617.6,4.0359636]
[1754045556779,4.2,3618.6,3617.6,2.29669913]
[1754045556980,4.4494,3618.5,3618.1,2.76387954]
[1754045557200,0.1384,3618.5,3618.1,2.76387954]
[1754045557481,4.311,3618.4,3618.2,1.1333]
[1754045557676,4.311,3618.3,3618.2,3.19387592]
[1754045557895,0.1384,3618.6,3618.3,0.7032]
[1754045558114,1.19561761,3618.7,3618.6,2.76349969]
[1754045558315,7.06,3620.0,3618.7,3.0]
[1754045558614,0.1384,3619.5,3618.8,1.1333]
[1754045558777,4.311,3619.4,3618.7,2.76341722]
[1754045558984,5.03220809,3619.4,3618.7,2.76340221]
[1754045559507,7.3713,3620.3,3619.5,2.76277251]
[1754045559710,0.1384,3620.1,3619.6,1.1333]
[1754045559907,4.312,3620.1,3620.0,2.76243093]
[1754045560107,4.312,3620.1,3620.0,7.03413093]
[1754045560277,0.1384,3620.6,3620.5,2.76204944]
[1754045560480,0.1384,3621.2,3620.5,1.1333]
[1754045560718,4.313,3621.1,3620.5,1.2717]
[1754045560941,0.44514,3621.1,3620.6,2.76197315]
[1754045561153,4.311,3621.1,3620.9,2.76173053]
[1754045561308,4.311,3621.1,3620.7,0.1384]
[1754045561707,4.311,3621.0,3620.8,2.76182059]
[1754045561918,4.311,3621.0,3620.9,2.76174431]
[1754045562240,4.311,3621.0,3620.9,0.7032]
[1754045562628,4.31,3621.0,3620.9,0.7032]
[1754045563409,4.31,3621.0,3620.7,0.1384]
[1754045563739,4.31,3620.9,3620.7,3.60344193]
[1754045563939,4.31,3620.8,3620.7,5.90024193]
[1754045564446,0.1384,3621.3,3620.8,2.76178932]
[1754045564677,4.31,3621.2,3620.8,2.76178932]
[1754045565242,4.31,3621.2,3620.8,2.76181806]
[1754045565443,0.1384,3621.3,3620.9,0.7032]
[1754045565643,4.309,3621.1,3621.0,0.8416]
[1754045566039,4.309,3621.1,3621.0,0.1384]
[1754045566515,4.309,3621.1,3620.7,3.0]
[1754045566717,4.309,3621.1,3620.8,0.1384]
[1754045567360,4.309,3621.1,3620.7,3.0]
[1754045567514,0.1384,3621.0,3620.7,3.0]
[1754045569366,0.8991,3621.0,3620.7,3.0]
[1754045570366,0.7607,3620.9,3620.3,3.0]
[1754045570551,0.1384,3621.0,3620.5,3.0]
[1754045570847,0.1384,3621.0,3620.3,3.60248398]
[1754045571014,0.1384,3621.0,3620.4,3.0]
[1754045571215,0.7607,3620.9,3620.3,0.1384]
[1754045571445,0.1384,3621.0,3620.6,2.76192305]
[1754045571642,0.1384,3621.0,3620.6,0.7019]
[1754045572646,0.1384,3621.0,3620.3,1.3153]
[1754045572829,0.1384,3621.0,3620.3,0.8403]
[1754045573024,0.1384,3621.0,3620.3,0.1384]
[1754045573227,0.1384,3620.5,3619.8,0.68051811]
[1754045573452,4.307,3620.4,3620.0,0.1384]
[1754045573638,0.7607,3620.3,3620.0,0.1384]
[1754045573837,4.7645,3620.4,3620.0,0.1384]
[1754045573838,4.307,3620.4,3620.0,0.1384]
[1754045574240,4.307,3620.4,3620.1,0.7019]
[1754045574427,4.307,3620.4,3620.0,0.6134]
[1754045574629,4.307,3620.4,3620.0,6.6026769]
[1754045574837,0.1384,3620.5,3620.0,4.59167601]
[1754045575022,0.1384,3620.5,3619.8,0.21084278]
[1754045575023,4.307,3620.4,3620.3,0.1384]
[1754045575351,4.307,3620.5,3620.3,3.60250202]
[1754045575552,4.307,3620.5,3620.4,1.1769]
[1754045576149,4.307,3620.5,3620.4,3.93902573]
[1754045576349,4.307,3620.5,3620.4,6.93902573]
[1754045577672,4.307,3620.5,3620.4,4.1769]
[1754045578162,4.307,3620.5,3620.4,6.93902573]
[1754045578539,4.307,3620.5,3620.4,4.1769]
[1754045578754,8.507,3620.5,3620.4,4.1769]
[1754045579629,8.507,3620.5,3620.4,6.93902573]
[1754045579828,8.507,3620.5,3620.4,4.1769]
[1754045580552,8.507,3620.5,3620.4,3.7019]
[1754045581832,8.507,3620.5,3620.4,6.46402573]
[1754045582452,8.507,3620.5,3620.4,3.7019]
[1754045582653,8.507,3620.5,3620.4,6.46402573]
[1754045582961,8.507,3620.5,3620.4,7.92299037]
[1754045583166,4.2,3620.5,3620.4,7.92299037]
[1754045584558,4.307,3620.7,3620.6,2.76197315]
[1754045584881,4.307,3620.7,3620.6,6.93887315]
[1754045585083,4.2,3620.9,3620.6,1.1769]
[1754045585245,4.306,3620.8,3620.6,0.1384]
[1754045586142,4.306,3620.8,3619.9,7.306]
[1754045586143,4.306,3620.8,3620.1,2.76230572]
[1754045586369,0.1384,3620.5,3620.0,0.1384]
[1754045586543,4.306,3620.4,3620.0,2.90077353]
[1754045586742,4.306,3620.4,3620.0,3.1384]
[1754045587060,4.306,3620.4,3620.0,0.1384]
[1754045587260,4.306,3620.4,3620.0,3.1384]
[1754045587460,4.306,3620.4,3620.0,0.1384]
[1754045587662,4.306,3620.4,3620.0,0.51902092]
[1754045587850,0.1384,3620.5,3620.1,1.1769]
[1754045588178,0.1384,3620.5,3620.1,3.0]
[1754045588179,4.306,3620.4,3620.1,3.0]
[1754045588470,4.306,3620.4,3620.0,0.1384]
[1754045588838,5.0667,3620.4,3620.0,0.1384]
[1754045589176,0.1384,3620.2,3619.8,3.20335261]
[1754045589384,4.306,3620.1,3619.8,3.20335261]
[1754045589548,4.306,3620.1,3619.7,0.1384]
[1754045589758,4.2,3620.0,3619.8,2.76252647]
[1754045589946,4.2,3620.0,3619.9,5.76250725]
[1754045590286,8.506,3620.0,3619.9,7.87595389]
[1754045590578,8.506,3620.0,3619.9,3.1384]
[1754045591780,8.506,3620.0,3619.9,3.0]
[1754045593871,8.506,3620.0,3619.9,5.76250725]
[1754045594290,8.506,3620.0,3619.9,3.0]
[1754045595071,8.506,3620.0,3619.9,6.93940725]
[1754045595654,8.506,3620.0,3619.9,6.46440725]
[1754045595855,8.506,3620.0,3619.9,6.60280725]
[1754045596492,8.506,3620.0,3619.9,5.90090725]
[1754045597086,8.506,3620.0,3619.9,6.57790725]
[1754045597790,8.506,3620.0,3619.9,7.01790725]
[1754045597955,8.506,3620.0,3619.9,4.97251837]
[1754045599287,4.2,3620.0,3619.9,4.97251837]
[1754045599581,8.506,3620.0,3619.9,4.97251837]
[1754045601358,4.2,3620.0,3619.9,4.97251837]
[1754045601553,8.505,3620.0,3619.9,4.97251837]
[1754045602810,8.505,3620.0,3619.9,3.85551837]
[1754045602983,8.505,3620.0,3619.9,0.1384]
[1754045603689,8.505,3620.0,3619.9,2.90090725]
[1754045604214,8.505,3620.0,3619.7,0.20561189]
[1754045604373,9.2225,3620.0,3619.7,0.1384]
[1754045604694,8.505,3620.0,3619.7,5.9010509]
[1754045605086,8.505,3620.0,3619.8,2.7625792]
[1754045605275,8.505,3620.0,3619.9,2.76250725]
[1754045605476,8.505,3620.0,3619.8,3.0]
[1754045605677,8.505,3620.0,3619.8,2.76254028]
[1754045606404,8.505,3620.0,3619.9,2.76250725]
[1754045606575,8.505,3620.0,3619.7,5.90105935]
[1754045606989,8.505,3620.0,3619.8,2.762571]
[1754045607199,8.505,3620.0,3619.9,2.76250725]
[1754045607401,8.505,3620.0,3619.7,3.57805843]
[1754045607603,4.2,3620.0,3619.9,2.76250725]
[1754045607803,8.505,3620.0,3619.9,2.76250725]
[1754045608106,8.505,3620.0,3619.9,3.87950725]
[1754045608409,8.505,3620.0,3619.9,1.117]
[1754045608587,8.505,3620.0,3619.8,2.76258356]
[1754045608778,8.505,3620.0,3619.8,3.43958356]
[1754045608978,8.505,3620.0,3619.8,3.677]
[1754045609203,8.505,3620.0,3619.8,0.677]
[1754045609413,8.505,3620.0,3619.9,2.76250725]
[1754045610000,8.505,3620.0,3619.9,3.43950725]
[1754045610978,8.505,3620.0,3619.9,0.677]
[1754045611205,8.505,3620.0,3619.9,2.76250725]
[1754045611920,8.505,3620.0,3619.9,3.87950725]
[1754045612077,8.505,3620.0,3619.9,4.87837769]
[1754045612417,8.505,3620.0,3619.9,5.01677769]
[1754045613387,4.2,3620.0,3619.9,7.90600276]
[1754045613580,4.2,3620.0,3619.9,7.87837769]
[1754045614281,4.2,3620.0,3619.9,6.76137769]
[1754045614478,4.2,3620.0,3619.9,5.76250725]
[1754045615279,4.2,3620.0,3619.9,3.0]
[1754045615880,4.2,3620.0,3619.9,5.76250725]
[1754045616326,4.2,3620.0,3619.9,3.0]
[1754045616494,4.2,3620.0,3619.7,3.20816446]
[1754045616810,4.304,3619.9,3619.8,5.76258356]
[1754045617331,4.304,3619.9,3619.2,4.304]
[1754045617332,4.304,3619.9,3619.5,3.0]
[1754045617535,0.4409,3619.8,3619.3,2.76291995]
[1754045617698,4.304,3619.7,3619.3,2.76291767]
[1754045618028,1.1584,3619.6,3618.8,4.303]
[1754045618239,4.303,3619.5,3619.4,2.76288671]
[1754045618597,4.303,3619.5,3619.3,2.76295146]
[1754045618799,4.303,3619.5,3619.3,2.96673235]
[1754045619199,4.303,3619.5,3619.3,0.20378089]
[1754045619425,4.303,3619.5,3619.1,6.44010437]
[1754045619740,5.0205,3619.5,3618.7,2.7634059]
[1754045619940,5.0205,3619.5,3618.9,3.0]
[1754045620404,5.0205,3619.5,3618.9,5.76323348]
[1754045620604,5.0205,3619.5,3618.8,5.76331371]
[1754045620818,5.0205,3619.5,3618.9,2.76321515]
[1754045621261,4.2,3619.4,3618.1,1.117]
[1754045621559,11.43252468,3619.0,3618.0,2.76393786]
[1754045621762,2.76364645,3618.5,3617.6,0.677]
[1754045621916,7.15736088,3618.4,3617.6,2.76424548]
[1754045622116,5.0205,3618.4,3617.7,0.677]
[1754045622324,4.2,3618.9,3617.7,0.677]
[1754045622523,4.303,3618.8,3617.9,3.0]
[1754045622848,4.2,3618.9,3618.0,1.117]
[1754045623051,4.303,3618.7,3618.1,1.117]
[1754045623250,4.2,3618.9,3618.2,1.117]
[1754045623424,4.2,3618.9,3618.5,0.1384]
[1754045623425,4.303,3618.8,3618.5,0.1384]
[1754045623826,4.303,3618.8,3618.6,3.88048025]
[1754045624041,4.303,3618.8,3618.5,0.1384]
[1754045624243,4.303,3618.8,3618.5,3.57892239]
[1754045624419,4.303,3618.8,3618.6,2.76349263]
[1754045624619,4.303,3618.8,3618.5,3.57895065]
[1754045624820,4.2,3618.9,3618.5,3.57895065]
[1754045624821,4.303,3618.7,3618.6,3.88048635]
[1754045625237,4.303,3618.7,3618.6,1.2554]
[1754045625822,4.303,3618.7,3618.6,0.1384]
[1754045626352,5.0205,3618.7,3618.6,0.1384]
[1754045626527,4.303,3618.7,3618.2,3.0]
[1754045626735,4.4414,3618.7,3618.2,3.4578014]
[1754045627439,4.4414,3618.7,3618.2,0.694]
[1754045627863,4.4414,3618.7,3618.3,2.76366842]
[1754045628023,4.4414,3618.7,3618.3,3.45766842]
[1754045628218,4.4414,3618.7,3618.3,0.694]
[1754045628451,1.1713,3618.6,3618.1,0.1384]
[1754045628651,4.303,3618.5,3618.1,2.90225234]
[1754045628859,0.7361,3618.4,3617.8,2.76409022]
[1754045629159,4.303,3618.3,3617.6,2.9711065]
[1754045629457,0.1384,3618.1,3617.6,0.1384]
[1754045629663,4.303,3618.0,3617.6,0.1384]
[1754045630022,4.303,3618.0,3617.6,2.90265386]
[1754045630252,5.4743,3618.0,3617.3,0.694]
[1754045630426,5.4743,3618.0,3617.5,3.1384]
[1754045630640,4.303,3618.0,3617.5,3.1384]
[1754045630836,4.303,3618.0,3617.8,2.76410574]
[1754045631063,4.303,3618.0,3617.6,0.694]
[1754045631064,4.303,3618.0,3617.6,3.45823276]
[1754045631359,0.1384,3618.1,3617.8,2.7640498]
[1754045631561,4.303,3617.9,3617.8,2.7640498]
[1754045631761,4.303,3617.9,3617.8,3.8967498]
[1754045632222,4.303,3617.9,3617.8,1.1327]
[1754045632626,4.303,3617.9,3617.8,3.89681078]
[1754045633171,4.303,3617.9,3617.7,2.76417855]
[1754045633371,4.303,3617.9,3617.6,2.76425229]
[1754045633524,4.303,3617.9,3617.7,2.7641717]
[1754045633734,4.303,3617.9,3617.8,2.76411078]
[1754045633944,4.303,3617.9,3617.7,2.7641569]
[1754045634233,4.303,3617.9,3617.8,2.76411078]
[1754045634475,4.303,3617.9,3617.8,3.45811078]
[1754045634675,4.303,3617.9,3617.8,3.89681078]
[1754045634876,4.303,3617.9,3617.8,2.76411078]
[1754045636361,0.1384,3618.2,3617.9,2.76403438]
[1754045636561,4.303,3618.1,3617.9,2.76403438]
[1754045636764,4.303,3618.1,3617.8,2.76411078]
[1754045636965,4.303,3618.1,3617.9,2.76396921]
[1754045637176,4.303,3618.1,3618.0,2.76395798]
[1754045638536,4.303,3618.1,3617.9,2.76401501]
[1754045639337,4.303,3618.0,3617.8,3.45809815]
[1754045639533,4.303,3618.0,3617.8,0.694]
[1754045639739,4.303,3618.0,3617.9,3.45803438]
[1754045639991,4.303,3618.0,3617.9,3.89673438]
[1754045640194,0.1384,3618.2,3618.1,2.76388159]
[1754045640399,4.2,3618.4,3618.3,2.76372882]
[1754045640701,4.2,3618.4,3618.3,3.89642882]
[1754045640702,4.303,3618.4,3618.3,3.89642882]
[1754045641400,4.2,3618.6,3618.3,3.89642882]
[1754045641401,4.2,3618.6,3618.5,2.76357606]
[1754045641602,4.3384,3618.7,3618.5,3.89627606]
[1754045641771,4.3384,3618.7,3618.6,4.56220018]
[1754045641772,4.2,3618.7,3618.6,4.56220018]
[1754045641978,8.502,3618.7,3618.6,4.56220018]
[1754045642170,8.502,3618.7,3618.6,3.89619969]
[1754045642504,8.502,3618.7,3618.5,0.1384]
[1754045642701,8.502,3618.7,3618.4,0.1384]
[1754045643091,8.502,3618.7,3618.4,0.8324]
[1754045643606,8.502,3618.7,3618.5,2.76356364]
[1754045644063,8.502,3618.7,3618.4,3.59603819]
[1754045644263,8.502,3618.7,3618.4,2.90203819]
[1754045644997,4.2,3618.7,3618.6,2.76349969]
[1754045645211,8.502,3618.7,3618.6,3.89619969]
[1754045645510,8.502,3618.7,3618.6,4.03459969]
[1754045646063,4.2,3619.3,3619.0,2.76319425]
[1754045646408,4.302,3619.2,3618.9,2.76324765]
[1754045646563,4.302,3619.2,3618.9,2.90163853]
[1754045646767,4.302,3619.2,3619.0,2.76318911]
[1754045646959,4.302,3619.2,3619.0,2.76316227]
[1754045647163,4.302,3619.2,3618.9,0.1384]
[1754045648300,4.2,3619.3,3618.9,0.1384]
[1754045648501,4.301,3619.2,3618.9,0.1384]
[1754045648688,4.301,3619.1,3618.9,0.1384]
[1754045648870,4.4394,3619.1,3618.7,2.7633951]
[1754045649071,4.4394,3619.1,3618.8,2.7633398]
[1754045649267,4.4394,3619.1,3618.7,3.4573979]
[1754045649523,4.4394,3619.1,3618.7,3.45739439]
[1754045649802,4.2,3619.0,3618.8,2.76334466]
[1754045649977,4.301,3618.9,3618.8,3.45734466]
[1754045650180,4.301,3618.9,3618.8,3.45734696]
[1754045650702,4.301,3618.9,3618.8,0.694]
[1754045651100,4.301,3618.9,3618.6,0.1384]
[1754045652096,5.0206,3618.9,3618.5,0.1384]
[1754045652304,1.1548,3618.8,3618.1,3.694]
[1754045652514,4.301,3618.7,3618.4,0.1384]
[1754045653012,4.301,3618.7,3618.4,2.9019898]
[1754045653213,4.301,3618.7,3618.4,0.1384]
[1754045653379,4.301,3618.7,3618.5,2.76352118]
[1754045653574,4.301,3618.7,3618.5,2.76356769]
[1754045653803,4.301,3618.7,3618.4,2.90203302]
[1754045654880,4.301,3618.7,3618.5,2.76357022]
[1754045655081,4.301,3618.7,3618.4,3.1384]
[1754045655305,4.301,3618.7,3618.4,2.90202656]
[1754045655517,4.2,3618.6,3618.4,2.90202656]
[1754045655813,4.3,3618.5,3618.4,2.90202656]
[1754045656116,4.3,3618.5,3618.4,4.03472656]
[1754045656324,4.3,3618.5,3618.4,5.01457859]
[1754045657624,4.3,3618.5,3618.4,3.88187859]
[1754045657827,4.3,3618.5,3618.4,2.90202656]
[1754045658194,4.3,3618.5,3618.4,0.1384]
[1754045658517,5.5216,3618.5,3617.9,3.0]
[1754045658713,4.8682,3618.5,3617.9,3.0]
[1754045658948,0.1384,3618.3,3617.8,0.1384]
[1754045659146,4.299,3618.2,3617.9,3.0]
[1754045659545,4.299,3618.2,3617.8,0.1384]
[1754045659753,9.1524,3618.2,3617.8,0.1384]
[1754045660331,8.499,3618.2,3617.9,3.0]
[1754045660559,8.499,3618.2,3617.8,3.1384]
[1754045660735,8.499,3618.2,3617.8,0.1384]
[1754045661058,8.499,3618.2,3617.5,1.1376]
[1754045661225,0.6534,3618.1,3617.7,0.1384]
[1754045661426,4.299,3618.0,3617.7,0.1384]
[1754045661960,4.299,3618.0,3617.7,3.1384]
[1754045662176,4.9524,3618.0,3617.5,3.0]
[1754045662348,0.1384,3617.9,3617.5,3.0]
[1754045662671,4.9524,3617.8,3617.4,0.1384]
[1754045663168,4.299,3617.8,3617.4,2.76440695]
[1754045663358,4.299,3617.8,3617.4,3.43680695]
[1754045663555,4.299,3617.8,3617.3,0.1384]
[1754045664081,0.1384,3617.9,3617.3,0.1384]
[1754045664238,4.299,3617.7,3617.6,2.7642636]
[1754045664658,4.299,3617.7,3617.6,3.9018636]
[1754045665128,4.299,3617.8,3617.7,5.76418719]
[1754045665331,4.2,3618.2,3618.1,2.76388159]
[1754045665548,8.499,3618.2,3618.1,3.90148159]
[1754045666042,8.499,3618.2,3618.1,1.1376]
[1754045666245,4.2,3618.2,3618.1,3.90148159]
[1754045666452,8.499,3618.2,3618.1,3.90148159]
[1754045666658,4.2,3618.2,3618.1,3.90148159]
[1754045667375,4.298,3618.3,3618.2,2.7638052]
[1754045667580,4.298,3618.3,3618.2,4.0398052]
[1754045668280,4.2,3618.6,3618.5,2.76357454]
[1754045668599,8.498,3618.6,3618.5,3.90117454]
[1754045669294,8.498,3618.6,3618.2,2.76376062]
[1754045669462,8.498,3618.6,3618.5,2.76357606]
[1754045670567,8.498,3618.6,3618.5,3.43597606]
[1754045670768,8.498,3618.6,3618.5,0.6724]
[1754045670972,9.1514,3618.6,3618.4,0.1384]
[1754045671276,1.0832,3618.5,3618.1,0.1384]
[1754045671497,16.82093171,3618.4,3617.6,3.0]
[1754045671693,4.2,3618.3,3617.9,0.1384]
[1754045671894,4.298,3618.2,3617.9,0.1384]
[1754045672298,8.498,3618.2,3617.9,0.1384]
[1754045672603,1.2216,3618.1,3617.4,0.1384]
[1754045672820,0.1384,3617.9,3617.4,0.1384]
[1754045673109,9.5812,3617.8,3617.1,2.90298714]
[1754045673270,0.1384,3617.6,3617.2,3.0]
[1754045673469,8.497,3617.5,3617.2,3.0]
[1754045673799,8.497,3617.5,3617.2,2.76455971]
[1754045674023,8.497,3617.5,3617.4,3.0]
[1754045674192,8.497,3617.5,3617.4,6.43681643]
[1754045674701,8.497,3617.5,3617.3,3.0]
[1754045675820,8.497,3617.5,3617.1,0.1384]
[1754045676119,8.497,3617.5,3617.4,3.0]
[1754045676495,8.497,3617.5,3617.4,5.76441643]